[Event "TUR-chT Superleague 2018"]
[Site "Ankara"]
[Date "2018.07.26"]
[Round "2"]
[White "Can, Isil"]
[Black "Yorgun, Yaren Naz"]
[Result "1-0"]
[ECO "B07"]
[WhiteElo "1862"]
[BlackElo "1737"]
[Annotator "NA"]
[PlyCount "191"]
[EventDate "2018.07.25"]
[EventType "team-tourn"]
[EventCountry "TUR"]
[SourceTitle "playchess.com"]
[Source "ChessBase"]
[SourceQuality "1"]
[TimeControl "40/5400+30:1800+30"]

1. e4 g6 2. d4 Bg7 3. Nf3 d6 4. c3 Nf6 5. Bd3 O-O 6. O-O Nbd7 7. Bg5 h6 8. Bh4 e5 9. Na3 g5 10. Bg3 Nh5 11. Nxe5 Nxe5 12. dxe5 Nxg3 13. hxg3 dxe5 14. g4 Qf6 15. Qe2 Rd8 16. Rad1 Qf4 17. f3 h5 18. gxh5 g4 19. Qd2 Qxd2 20. Rxd2 Bh6 21. Rdd1 gxf3 22. gxf3 Be3+ 23. Kg2 Kh7 24. Rh1 Rg8+ 25. Kf1 Rg3 26. Ke2 Bc5 27. Bc4 Bh3 28. Bxf7 Rg2+ 29. Kd3 Rg3 30. Bg6+ Kh8 31. Nc4 Rxf3+ 32. Kc2 Rf2+ 33. Kb1 Bg4 34. Rd5 b6 35. Rxe5 Be2 36. Na3 Bxa3 37. bxa3 Bd3+ 38. Ka1 Bc4 39. Rd1 Rxa2+ 40. Kb1 Rf8 41. Re7 Rxa3 42. Bf5 Bg8 43. Rxc7 a5 44. Rd6 Bf7 45. Rxb6 a4 46. Rbb7 Rb3+ 47. Rxb3 axb3 48. h6 Bg8 49. h7 Bf7 {[%emt 2:10:44]} 50. Kb2 {[%emt 2:12:05]} Kg7 {[%emt 0:00:30]} 51. c4 {[%emt 0:00:30]} Kh8 {[%emt 0:00:30]} 52. Kxb3 {[%emt 0:00:30]} Bg6 {[%emt 0:00:30]} 53. Rc5 {[%emt 0:02:21]} Bxf5 {[%emt 0:00:54]} 54. Rxf5 {[%emt 0:02:04]} Re8 {[%emt 0:00:05]} 55. e5 {[%emt 0:00:27]} Kxh7 {[%emt 0:00:30]} 56. Kc3 {[%emt 0:00:30]} Kg6 {[%emt 0:00:00]} 57. Rf6+ {[%emt 0:00:00]} Kg7 {[%emt 0:00:38]} 58. Kd4 {[%emt 0:00:00]} Rd8+ {[%emt 0:00:22]} 59. Rd6 {[%emt 0:00:03]} Rc8 {[%emt 0:00:00]} 60. c5 {[%emt 0:00:22]} Kf7 {[%emt 0:00:00]} 61. Kd5 {[%emt 0:00:58]} Ke7 {[%emt 0:00:00]} 62. c6 {[%emt 0:00:00]} Ra8 {[%emt 0:00:32]} 63. Rd7+ {[%emt 0:00:44]} Ke8 {[%emt 0:00:30]} 64. Kd6 {[%emt 0:00:00]} Ra1 {[%emt 0:00:00]} 65. e6 {[%emt 0:02:36]} Rd1+ {[%emt 0:00:34]} 66. Kc7 {[%emt 0:00:15]} Re1 {[%emt 0:00:00]} 67. e7 {[%emt 0:01:01]} Ra1 {[%emt 0:00:00]} 68. Kb8 {[%emt 0:00:32]} Rc1 {[%emt 0:00:25]} 69. Rc7 {[%emt 0:01:57]} Rc2 {[%emt 0:00:11]} 70. Kb7 {[%emt 0:00:47]} Rb2+ {[%emt 0:00:32]} 71. Ka8 {[%emt 0:00:29]} Rc2 {[%emt 0:00:36]} 72. Kb7 {[%emt 0:00:30]} Rb2+ {[%emt 0:00:30]} 73. Kc8 {[%emt 0:00:30]} Rc2 {[%emt 0:00:00]} 74. Kb8 {[%emt 0:00:00]} Rc1 {[%emt 0:00:00]} 75. Ka7 {[%emt 0:01:20]} Ra1+ {[%emt 0:00:00]} 76. Kb6 {[%emt 0:00:24]} Rb1+ {[%emt 0:00:03]} 77. Ka5 {[%emt 0:00:30]} Ra1+ {[%emt 0:00:24]} 78. Kb4 {[%emt 0:00:00]} Rb1+ {[%emt 0:00:30]} 79. Ka3 {[%emt 0:00:23]} Rc1 {[%emt 0:00:00]} 80. Kb2 {[%emt 0:00:00]} Rc5 {[%emt 0:00:00]} 81. Kb3 {[%emt 0:01:19]} Rc1 {[%emt 0:01:30]} 82. Kb4 {[%emt 0:00:08]} Rb1+ {[%emt 0:00:00]} 83. Kc5 {[%emt 0:00:32]} Rc1+ {[%emt 0:00:00]} 84. Kb6 {[%emt 0:01:29]} Rb1+ {[%emt 0:00:30]} 85. Ka7 {[%emt 0:00:32]} Ra1+ {[%emt 0:00:30]} 86. Kb8 {[%emt 0:00:58]} Rc1 {[%emt 0:00:30]} 87. Rc8+ {[%emt 0:00:00]} Kxe7 {[%emt 0:00:00]} 88. Kc7 {[%emt 0:00:00]} Rc2 {[%emt 0:02:00]} 89. Rh8 {[%emt 0:01:03]} Ke6 {[%emt 0:00:30]} 90. Rh6+ {[%emt 0:00:48]} Ke7 {[%emt 0:00:30]} 91. Kc8 {[%emt 0:01:26]} Rc1 {[%emt 0:00:33]} 92. c7 {[%emt 0:00:31]} Rb1 {[%emt 0:00:27]} 93. Rh7+ {[%emt 0:01:26]} Ke8 {[%emt 0:00:30]} 94. Rh4 {[%emt 0:00:25]} Ke7 {[%emt 0:00:30]} 95. Re4+ {[%emt 0:00:13]} Kf6 {[%emt 0:00:40]} 96. Kd7 {[%emt 0:01:02]} 1-0

[Event "TUR-chT Superleague 2018"]
[Site "Ankara"]
[Date "2018.07.26"]
[Round "2"]
[White "Ayan, Bengu Sena"]
[Black "Keskin, Elif"]
[Result "1-0"]
[ECO "D70"]
[WhiteElo "1787"]
[BlackElo "1719"]
[Annotator "NA"]
[PlyCount "143"]
[EventDate "2018.07.25"]
[EventType "team-tourn"]
[EventCountry "TUR"]
[SourceTitle "playchess.com"]
[Source "ChessBase"]
[SourceQuality "1"]
[TimeControl "40/5400+30:1800+30"]

1. d4 Nf6 2. c4 g6 3. f3 d5 4. cxd5 Nxd5 5. e4 Nb6 6. Nc3 Bg7 7. Be3 O-O 8. Qd2 e5 9. d5 c6 10. d6 Be6 11. O-O-O N8d7 12. g4 Nf6 13. Bh6 Qd7 14. h4 Rad8 15. h5 Nc8 16. Bxg7 Kxg7 17. Qg5 h6 18. Qxe5 g5 19. Qg3 Rfe8 20. Be2 b5 21. Kb1 Nb6 22. e5 Nfd5 23. Ne4 Na4 24. Nf6 Nxf6 25. exf6+ Kxf6 26. f4 gxf4 27. Qxf4+ Kg7 28. g5 Bf5+ 29. Ka1 hxg5 30. Qxg5+ Kh7 31. h6 Rg8 32. Qf4 Qe6 33. Nf3 Qf6 34. Rd2 Rg4 35. Qe5 Qe6 36. Qh2 Qf6 37. Qe5 Qe6 38. Qxe6 Bxe6 39. Ne5 Rg5 40. Nxc6 Rd7 41. Bf3 Nb6 42. b3 Nd5 43. Rhd1 Nc3 44. Rc1 Nd5 45. Nd4 Rxd6 46. Nxb5 Rd7 47. Nd4 Kxh6 48. Nxe6 fxe6 49. Rc6 Re5 50. Bxd5 Rdxd5 51. Rxd5 Rxd5 52. Rxe6+ Kg5 53. Re7 Ra5 54. Kb2 Kf6 55. Re2 Rb5 56. Kc3 a5 57. a3 Rc5+ 58. Kd4 Rc8 59. Re3 Kf7 60. Re5 Ra8 61. Kc4 Kf6 62. Re3 Rb8 63. b4 axb4 64. axb4 Rc8+ 65. Kb5 Rb8+ 66. Kc5 Rc8+ 67. Kd6 Rb8 68. Rf3+ Kg7 69. Rb3 Kf8 70. b5 Ke8 71. Kc7 Rd8 72. Re3+ 1-0

[Event "TUR-chT Superleague 2018"]
[Site "Ankara"]
[Date "2018.07.26"]
[Round "2"]
[White "Sahin, Hayrun Nisa"]
[Black "Onur, Cigdem"]
[Result "0-1"]
[ECO "B30"]
[WhiteElo "1736"]
[BlackElo "1750"]
[Annotator "NA"]
[PlyCount "190"]
[EventDate "2018.07.25"]
[EventType "team-tourn"]
[EventCountry "TUR"]
[SourceTitle "playchess.com"]
[Source "ChessBase"]
[SourceQuality "1"]
[TimeControl "40/5400+30:1800+30"]

1. e4 c5 2. Nf3 Nc6 3. Bb5 e6 4. O-O Nge7 5. Re1 Nd4 6. Nxd4 cxd4 7. c3 a6 8. Bf1 Nc6 9. d3 Bc5 10. c4 O-O 11. Nd2 e5 12. g3 d6 13. Bg2 Be6 14. a3 a5 15. f4 exf4 16. gxf4 f5 17. e5 dxe5 18. Bxc6 bxc6 19. Rxe5 Qe7 20. Nf3 Bd6 21. Re1 Qf6 22. Bd2 Rae8 23. b4 axb4 24. axb4 Bf7 25. Rxe8 Rxe8 26. Qf1 Bh5 27. Qf2 Qg6+ 28. Kh1 c5 29. b5 Qg4 30. Ng1 Qg6 31. Ra6 Qe6 32. Ra1 Qf7 33. Qg2 h6 34. Ra6 Bb8 35. Rxh6 Bg4 36. Rb6 Qh5 37. h3 Bc7 38. Rc6 Bb8 39. b6 Kh7 40. b7 Re2 41. Rc8 Rxg2 42. Kxg2 Bxh3+ 43. Nxh3 {[%emt 2:10:05]} Qg4+ {[%emt 2:15:12]} 44. Kf2 {[%emt 0:01:14]} Qxh3 {[%emt 0:00:38]} 45. Rxb8 {[%emt 0:02:36]} Qh2+ {[%emt 0:03:08]} 46. Ke1 {[%emt 0:01:26]} Qh1+ {[%emt 0:00:22]} 47. Ke2 {[%emt 0:00:49]} Qb1 {[%emt 0:03:28]} 48. Rc8 {[%emt 0:04:11]} Qxb7 {[%emt 0:00:30]} 49. Rxc5 {[%emt 0:00:00]} Qg2+ {[%emt 0:00:59]} 50. Kd1 {[%emt 0:00:07]} Kg6 {[%emt 0:00:30]} 51. Rd5 {[%emt 0:00:55]} Qg1+ {[%emt 0:00:49]} 52. Kc2 {[%emt 0:00:01]} Qf2 {[%emt 0:00:15]} 53. Ra5 {[%emt 0:02:59]} Qe2 {[%emt 0:00:32]} 54. Re5 {[%emt 0:01:09]} Qf2 {[%emt 0:00:29]} 55. Rb5 {[%emt 0:00:29]} Qe2 {[%emt 0:00:30]} 56. Re5 {[%emt 0:00:52]} Qf2 {[%emt 0:00:46]} 57. Ra5 {[%emt 0:00:07]} Kf6 {[%emt 0:00:00]} 58. Rb5 {[%emt 0:00:30]} Ke6 {[%emt 0:00:11]} 59. Re5+ {[%emt 0:00:30]} Kf6 {[%emt 0:00:04]} 60. Rb5 {[%emt 0:00:00]} g6 {[%emt 0:00:31]} 61. Ra5 {[%emt 0:00:18]} Kg7 {[%emt 0:00:52]} 62. Rb5 {[%emt 0:00:26]} Kh6 {[%emt 0:00:24]} 63. Ra5 {[%emt 0:00:08]} Kh5 {[%emt 0:00:48]} 64. Rb5 {[%emt 0:00:23]} Kg4 {[%emt 0:00:35]} 65. Rb6 {[%emt 0:01:04]} Kh5 {[%emt 0:00:23]} 66. Rb5 {[%emt 0:00:59]} Qg2 {[%emt 0:00:19]} 67. Rd5 {[%emt 0:01:03]} Qf2 {[%emt 0:00:08]} 68. Rb5 {[%emt 0:00:10]} Kg4 {[%emt 0:00:55]} 69. Rb6 {[%emt 0:00:26]} Kh5 {[%emt 0:01:27]} 70. Rb5 {[%emt 0:00:30]} Qg1 {[%emt 0:00:00]} 71. Rd5 {[%emt 0:00:00]} Kg4 {[%emt 0:00:31]} 72. Rb5 {[%emt 0:01:47]} Kf3 {[%emt 0:00:31]} 73. Re5 {[%emt 0:00:32]} Qa1 {[%emt 0:00:29]} 74. Ra5 {[%emt 0:00:53]} Qg1 {[%emt 0:00:06]} 75. Re5 {[%emt 0:00:00]} Qf2 {[%emt 0:00:55]} 76. Re6 {[%emt 0:00:28]} Qg2 {[%emt 0:00:30]} 77. Re5 {[%emt 0:00:24]} Qg1 {[%emt 0:00:44]} 78. Re1 {[%emt 0:00:24]} Qg2 {[%emt 0:00:10]} 79. Re5 {[%emt 0:00:09]} Qg4 {[%emt 0:00:37]} 80. c5 {[%emt 0:00:41]} Qh5 {[%emt 0:00:25]} 81. c6 {[%emt 0:00:27]} Qh7 {[%emt 0:00:20]} 82. Ba5 {[%emt 0:00:57]} Qf7 {[%emt 0:00:52]} 83. Kb2 {[%emt 0:00:30]} Kxf4 {[%emt 0:00:27]} 84. Rc5 {[%emt 0:00:43]} Qa7 {[%emt 0:00:35]} 85. Rd5 {[%emt 0:00:35]} Qb8+ {[%emt 0:00:21]} 86. Kc2 {[%emt 0:00:20]} Qa8 {[%emt 0:00:36]} 87. Rc5 {[%emt 0:00:35]} Qa7 {[%emt 0:00:24]} 88. Rd5 {[%emt 0:00:15]} Qa8 {[%emt 0:00:31]} 89. Rc5 {[%emt 0:00:26]} Qa7 {[%emt 0:00:32]} 90. Rd5 {[%emt 0:00:07]} Qf7 {[%emt 0:00:25]} 91. Rxd4+ {[%emt 0:00:12]} Ke3 {[%emt 0:00:13]} 92. Rc4 {[%emt 0:00:06]} Qd5 {[%emt 0:00:17]} 93. Bd2+ {[%emt 0:00:47]} Ke2 {[%emt 0:00:09]} 94. Kb3 {[%emt 0:01:06]} Kxd3 {[%emt 0:00:21]} 95. c7 {[%emt 0:01:00]} Qxc4+ {[%emt 0:00:06]} 0-1

[Event "TUR-chT Superleague 2018"]
[Site "Ankara"]
[Date "2018.07.26"]
[Round "2"]
[White "Aluc, Bulut Evrim"]
[Black "Aydin, Gulenay"]
[Result "1-0"]
[ECO "A68"]
[WhiteElo "1677"]
[BlackElo "1732"]
[Annotator "NA"]
[PlyCount "85"]
[EventDate "2018.07.25"]
[EventType "team-tourn"]
[EventCountry "TUR"]
[SourceTitle "playchess.com"]
[Source "ChessBase"]
[SourceQuality "1"]
[TimeControl "40/5400+30:1800+30"]

1. d4 {[%emt 0:00:30]} Nf6 {[%emt 0:01:00]} 2. c4 {[%emt 0:00:30]} g6 {[%emt 0:00:30]} 3. Nc3 {[%emt 0:00:30]} Bg7 {[%emt 0:00:30]} 4. e4 {[%emt 0:00:30]} d6 {[%emt 0:00:00]} 5. f4 {[%emt 0:00:00]} O-O {[%emt 0:00:00]} 6. Nf3 {[%emt 0:00:00]} c5 {[%emt 0:00:30]} 7. d5 {[%emt 0:00:00]} e6 {[%emt 0:01:30]} 8. Be2 {[%emt 0:00:00]} exd5 {[%emt 0:00:30]} 9. cxd5 {[%emt 0:00:00]} Bg4 {[%emt 0:01:30]} 10. O-O {[%emt 0:01:00]} Nbd7 {[%emt 0:01:30]} 11. h3 {[%emt 0:03:30]} Bxf3 {[%emt 0:00:30]} 12. Bxf3 {[%emt 0:00:30]} Re8 {[%emt 0:01:30]} 13. Re1 {[%emt 0:05:30]} a6 {[%emt 0:04:30]} 14. a4 {[%emt 0:00:30]} c4 {[%emt 0:07:30]} 15. Be3 {[%emt 0:06:30]} Qa5 {[%emt 0:03:30]} 16. Kh1 {[%emt 0:11:30]} Nc5 {[%emt 0:03:30]} 17. Bxc5 {[%emt 0:00:30]} Qxc5 {[%emt 0:00:30]} 18. e5 {[%emt 0:00:30]} dxe5 {[%emt 0:00:30]} 19. fxe5 {[%emt 0:00:30]} Nd7 {[%emt 0:00:30]} 20. e6 {[%emt 0:06:30]} Ne5 {[%emt 0:00:30]} 21. Ne4 {[%emt 0:07:30]} Qb4 {[%emt 0:15:30]} 22. Ng5 {[%emt 0:06:30]} f6 {[%emt 0:06:30]} 23. Rxe5 {[%emt 0:22:30]} fxg5 {[%emt 0:08:30]} 24. Rxg5 {[%emt 0:01:30]} Rad8 {[%emt 0:05:30]} 25. Qc2 {[%emt 0:02:30]} Qxb2 {[%emt 0:12:30]} 26. Qxb2 {[%emt 0:06:55]} Bxb2 {[%emt 0:00:00]} 27. Rb1 {[%emt 0:00:13]} c3 {[%emt 0:05:00]} 28. Be4 {[%emt 0:00:20]} b5 {[%emt 0:04:08]} 29. axb5 {[%emt 0:00:42]} axb5 {[%emt 0:00:11]} 30. Bc2 {[%emt 0:06:38]} Re7 {[%emt 0:05:00]} 31. Rd1 {[%emt 0:06:20]} Rd6 {[%emt 0:03:19]} 32. Re5 {[%emt 0:00:12]} b4 {[%emt 0:01:22]} 33. Re2 {[%emt 0:00:22]} Ba3 {[%emt 0:02:45]} 34. Bb3 {[%emt 0:00:13]} Bb2 {[%emt 0:01:01]} 35. Kg1 {[%emt 0:00:30]} Kf8 {[%emt 0:04:13]} 36. Rf1+ {[%emt 0:03:08]} Kg8 {[%emt 0:01:19]} 37. Ref2 {[%emt 0:01:04]} Re8 {[%emt 0:00:57]} 38. Rf7 {[%emt 0:01:53]} c2 {[%emt 0:00:23]} 39. Bxc2 {[%emt 0:00:06]} Rxd5 {[%emt 0:00:38]} 40. e7 {[%emt 0:00:55]} Bd4+ {[%emt 0:01:14]} 41. Kh1 {[%emt 0:00:29]} Rf5 {[%emt 0:06:30]} 42. R1xf5 {[%emt 0:00:30]} gxf5 {[%emt 0:00:30]} 43. Bb3 {[%emt 0:00:30]} 1-0

[Event "TUR-chT Superleague 2018"]
[Site "Ankara"]
[Date "2018.07.27"]
[Round "3"]
[White "Solak, Dragan"]
[Black "Eren, Ataberk"]
[Result "1-0"]
[ECO "D46"]
[WhiteElo "2603"]
[BlackElo "2195"]
[Annotator "ChessBase"]
[PlyCount "59"]
[EventDate "2018.07.25"]
[EventType "team-tourn"]
[EventCountry "TUR"]
[SourceTitle "playchess.com"]
[Source "ChessBase"]
[SourceQuality "1"]
[TimeControl "40/5400+30:1800+30"]

1. c4 {[%emt 0:00:30]} c6 {[%emt 0:02:00]} 2. Nf3 {[%emt 0:03:30]} Nf6 {[%emt 0:01:30]} 3. Nc3 {[%emt 0:02:30]} d5 {[%emt 0:00:30]} 4. e3 {[%emt 0:01:30]} e6 {[%emt 0:07:30]} 5. d4 {[%emt 0:07:30]} Nbd7 {[%emt 0:02:30]} 6. Qc2 {[%emt 0:00:30]} Bd6 {[%emt 0:04:30]} 7. Bd3 {[%emt 0:03:30]} O-O {[%emt 0:13:30]} 8. O-O {[%emt 0:00:30]} dxc4 {[%emt 0:05:30]} 9. Bxc4 {[%emt 0:01:30]} e5 {[%emt 0:00:30]} 10. Bb3 {[%emt 0:09:30]} Qe7 {[%emt 0:05:30]} 11. h3 {[%emt 0:02:30]} b6 {[%emt 0:11:30]} 12. Rd1 {[%emt 0:12:30]} Bb7 {[%emt 0:13:30]} 13. e4 {[%emt 0:03:30]} Rad8 {[%emt 0:01:30]} 14. Bg5 {[%emt 0:05:30]} Bb8 {[%emt 0:03:30]} 15. d5 {[%emt 0:07:30]} h6 {[%emt 0:04:30]} 16. Bh4 {[%emt 0:08:30]} Nc5 {[%emt 0:02:52]} 17. Bc4 {[%emt 0:03:30]} g5 {[%emt 0:04:17]} 18. Bg3 {[%emt 0:00:30]} cxd5 {[%emt 0:10:30]} 19. exd5 {[%emt 0:00:30]} e4 {[%emt 0:02:01]} 20. Bxb8 {[%emt 0:01:30]} Rxb8 {[%emt 0:00:08]} 21. d6 {[%emt 0:03:30]} Qe8 {[%emt 0:00:04]} 22. Nb5 {[%emt 0:02:24]} Ncd7 {[%emt 0:02:01]} 23. Nc7 {[%emt 0:01:51]} Qc8 {[%emt 0:00:12]} 24. Rac1 {[%emt 0:04:02]} Kh8 {[%emt 0:01:40]} 25. Nd4 {[%emt 0:02:45]} Ne5 {[%emt 0:00:40]} 26. Qc3 {[%emt 0:04:02]} Rg8 {[%emt 0:00:27]} 27. Nc6 {[%emt 0:02:01]} Nf3+ {[%emt 0:00:34]} 28. gxf3 {[%emt 0:00:42]} Qf5 {[%emt 0:00:13]} 29. fxe4 {[%emt 0:00:59]} Qf4 {[%emt 0:00:23]} 30. Nd5 {[%emt 0:00:31]} 1-0

[Event "TUR-chT Superleague 2018"]
[Site "Ankara"]
[Date "2018.07.27"]
[Round "3"]
[White "Dastan, Muhammed Batuhan"]
[Black "Soysal, Serkan"]
[Result "1/2-1/2"]
[ECO "D02"]
[WhiteElo "2552"]
[BlackElo "2406"]
[Annotator "ChessBase"]
[PlyCount "223"]
[EventDate "2018.07.25"]
[EventType "team-tourn"]
[EventCountry "TUR"]
[SourceTitle "playchess.com"]
[Source "ChessBase"]
[SourceQuality "1"]
[TimeControl "40/5400+30:1800+30"]

1. d4 Nf6 2. Nf3 d5 3. Bf4 e6 4. e3 Bd6 5. Bg3 O-O 6. Nbd2 b6 7. Ne5 Bb7 8. Bh4 Be7 9. f4 Ne4 10. Bxe7 Qxe7 11. Nxe4 dxe4 12. Qd2 f6 13. Ng4 c5 14. dxc5 Rd8 15. Qc3 Qxc5 16. Qxc5 bxc5 17. Nf2 Nd7 18. O-O-O Nb6 19. c4 f5 20. Be2 Kf7 21. Rhg1 Rxd1+ 22. Kxd1 a5 23. Kd2 Ba6 24. Rc1 Rd8+ 25. Kc3 Na4+ 26. Kc2 Nb6 27. b3 Nc8 28. Nd1 g6 29. Nc3 Nb6 30. g4 h6 31. Rg1 Kf6 32. h4 Bb7 33. a3 Bc6 34. Rb1 fxg4 35. Bxg4 Rd3 36. Rd1 Rxd1 37. Nxd1 e5 38. fxe5+ Kxe5 39. Kc3 h5 40. Bh3 Bd7 41. Bg2 {[%emt 1:47:30]} Nc8 {[%emt 1:55:00]} 42. b4 {[%emt 0:00:30]} axb4+ {[%emt 0:00:30]} 43. axb4 {[%emt 0:00:30]} cxb4+ {[%emt 0:03:30]} 44. Kxb4 {[%emt 0:00:30]} Nd6 {[%emt 0:01:30]} 45. Nf2 {[%emt 0:00:30]} Be6 {[%emt 0:02:38]} 46. c5 {[%emt 0:01:30]} Nf5 {[%emt 0:00:47]} 47. Bxe4 {[%emt 0:01:30]} Nxe3 {[%emt 0:07:10]} 48. Bxg6 {[%emt 0:00:30]} Ng2 {[%emt 0:00:23]} 49. Bxh5 {[%emt 0:01:30]} Nxh4 {[%emt 0:00:04]} 50. Kb5 {[%emt 0:00:30]} Nf5 {[%emt 0:02:10]} 51. Nd3+ {[%emt 0:00:30]} Kd4 {[%emt 0:02:01]} 52. Nb4 {[%emt 0:00:30]} Bd7+ {[%emt 0:00:14]} 53. Kb6 {[%emt 0:00:30]} Kc4 {[%emt 0:01:52]} 54. Na6 {[%emt 0:00:30]} Ne7 {[%emt 0:03:02]} 55. Bf3 {[%emt 0:02:30]} Nd5+ {[%emt 0:01:29]} 56. Kb7 {[%emt 0:01:30]} Kd4 {[%emt 0:00:15]} 57. Be2 {[%emt 0:02:30]} Nb4 {[%emt 0:00:53]} 58. Kb6 {[%emt 0:00:30]} Nd5+ {[%emt 0:00:30]} 59. Ka5 {[%emt 0:00:30]} Nc7 {[%emt 0:00:28]} 60. Nb8 {[%emt 0:00:30]} Kxc5 {[%emt 0:01:35]} 61. Nxd7+ {[%emt 0:00:30]} Kd6 {[%emt 0:00:00]} 62. Nb8 {[%emt 0:00:30]} Kc5 {[%emt 0:00:00]} 63. Bf3 {[%emt 0:00:30]} Kd6 {[%emt 0:00:07]} 64. Kb4 {[%emt 0:00:00]} Nd5+ {[%emt 0:00:30]} 65. Kc4 {[%emt 0:00:00]} Nb6+ {[%emt 0:00:30]} 66. Kd4 {[%emt 0:00:30]} Nd7 {[%emt 0:00:00]} 67. Nc6 {[%emt 0:00:00]} Nf6 {[%emt 0:00:00]} 68. Ne5 {[%emt 0:00:00]} Ke6 {[%emt 0:00:00]} 69. Nc4 {[%emt 0:00:30]} Kf5 {[%emt 0:00:00]} 70. Ne3+ {[%emt 0:00:30]} Ke6 {[%emt 0:00:00]} 71. Bg2 {[%emt 0:00:00]} Kd6 {[%emt 0:00:01]} 72. Nc4+ {[%emt 0:00:00]} Ke6 {[%emt 0:00:23]} 73. Bh3+ {[%emt 0:00:00]} Ke7 {[%emt 0:00:00]} 74. Ne3 {[%emt 0:00:00]} Kd6 {[%emt 0:00:00]} 75. Bc8 {[%emt 0:00:30]} Kc7 {[%emt 0:00:00]} 76. Be6 {[%emt 0:00:30]} Kd6 {[%emt 0:00:30]} 77. Bc4 {[%emt 0:00:30]} Kc6 {[%emt 0:00:30]} 78. Nf5 {[%emt 0:00:00]} Kd7 {[%emt 0:00:14]} 79. Bf7 {[%emt 0:00:00]} Kc6 {[%emt 0:00:06]} 80. Be6 {[%emt 0:00:00]} Kc7 {[%emt 0:00:00]} 81. Bb3 {[%emt 0:01:00]} Kd7 {[%emt 0:00:00]} 82. Ke5 {[%emt 0:00:30]} Ng4+ {[%emt 0:00:29]} 83. Ke4 {[%emt 0:00:30]} Nf6+ {[%emt 0:00:00]} 84. Kd4 {[%emt 0:00:00]} Kc7 {[%emt 0:00:46]} 85. Ba4 {[%emt 0:00:00]} Nd7 {[%emt 0:00:30]} 86. Bb5 {[%emt 0:00:30]} Nf6 {[%emt 0:00:15]} 87. Ke5 {[%emt 0:00:00]} Nd7+ {[%emt 0:00:24]} 88. Ke6 {[%emt 0:00:00]} Nc5+ {[%emt 0:00:00]} 89. Kd5 {[%emt 0:00:00]} Nd7 {[%emt 0:00:17]} 90. Nd6 {[%emt 0:01:00]} Nb6+ {[%emt 0:01:05]} 91. Ke6 {[%emt 0:00:30]} Nc8 {[%emt 0:00:00]} 92. Nc4 {[%emt 0:00:00]} Na7 {[%emt 0:00:36]} 93. Ba4 {[%emt 0:01:00]} Nc6 {[%emt 0:00:30]} 94. Kd5 {[%emt 0:00:00]} Nb4+ {[%emt 0:00:16]} 95. Kd4 {[%emt 0:00:00]} Nc6+ {[%emt 0:00:52]} 96. Kc5 {[%emt 0:00:00]} Nd8 {[%emt 0:00:00]} 97. Kd5 {[%emt 0:00:00]} Nb7 {[%emt 0:00:26]} 98. Be8 {[%emt 0:06:30]} Kd8 {[%emt 0:00:52]} 99. Bh5 {[%emt 0:00:30]} Kc7 {[%emt 0:00:00]} 100. Bg4 {[%emt 0:00:30]} Nd8 {[%emt 0:00:13]} 101. Ne5 {[%emt 0:00:30]} Nb7 {[%emt 0:00:14]} 102. Nc6 {[%emt 0:00:30]} Kb6 {[%emt 0:00:21]} 103. Ne7 {[%emt 0:01:30]} Na5 {[%emt 0:01:34]} 104. Be2 {[%emt 0:01:30]} Kc7 {[%emt 0:01:26]} 105. Bb5 {[%emt 0:00:30]} Nb7 {[%emt 0:00:30]} 106. Nf5 {[%emt 0:00:30]} Kb6 {[%emt 0:00:30]} 107. Be8 {[%emt 0:00:00]} Nd8 {[%emt 0:00:00]} 108. Nd6 {[%emt 0:01:00]} Nb7 {[%emt 0:00:00]} 109. Nb5 {[%emt 0:00:30]} Nd8 {[%emt 0:00:00]} 110. Nc3 {[%emt 0:00:30]} Nb7 {[%emt 0:00:00]} 111. Kd4 {[%emt 0:00:30]} Kc7 {[%emt 0:00:17]} 112. Nd5+ {[%emt 0:00:00]} 1/2-1/2

[Event "TUR-chT Superleague 2018"]
[Site "Ankara"]
[Date "2018.07.27"]
[Round "3"]
[White "Nihal Sarin"]
[Black "Zubov, Alexander"]
[Result "1/2-1/2"]
[ECO "A35"]
[WhiteElo "2551"]
[BlackElo "2611"]
[Annotator "ChessBase"]
[PlyCount "64"]
[EventDate "2018.07.25"]
[EventType "team-tourn"]
[EventCountry "TUR"]
[SourceTitle "playchess.com"]
[Source "ChessBase"]
[SourceQuality "1"]
[TimeControl "40/5400+30:1800+30"]

1. Nf3 {[%emt 0:00:30]} c5 {[%emt 0:02:00]} 2. c4 {[%emt 0:00:00]} Nc6 {[%emt 0:00:30]} 3. Nc3 {[%emt 0:02:00]} Nd4 {[%emt 0:07:30]} 4. e3 {[%emt 0:00:30]} Nxf3+ {[%emt 0:00:30]} 5. Qxf3 {[%emt 0:00:00]} g6 {[%emt 0:00:00]} 6. d4 {[%emt 0:02:00]} Bg7 {[%emt 0:00:00]} 7. dxc5 {[%emt 0:19:30]} Qa5 {[%emt 0:06:30]} 8. Bd2 {[%emt 0:00:30]} Qxc5 {[%emt 0:00:00]} 9. Bd3 {[%emt 0:09:30]} Nf6 {[%emt 0:03:00]} 10. O-O {[%emt 0:01:30]} O-O {[%emt 0:01:30]} 11. Rac1 {[%emt 0:05:30]} d6 {[%emt 0:03:30]} 12. h3 {[%emt 0:00:30]} Be6 {[%emt 0:16:30]} 13. e4 {[%emt 0:17:30]} Nd7 {[%emt 0:02:30]} 14. Qe2 {[%emt 0:00:30]} Ne5 {[%emt 0:00:30]} 15. Be3 {[%emt 0:01:30]} Qb4 {[%emt 0:06:30]} 16. b3 {[%emt 0:00:30]} Nf3+ {[%emt 0:02:30]} 17. Qxf3 {[%emt 0:00:30]} Bxc3 {[%emt 0:00:00]} 18. Qg3 {[%emt 0:06:30]} Bg7 {[%emt 0:08:00]} 19. c5 {[%emt 0:09:30]} Rac8 {[%emt 0:07:30]} 20. Bc4 {[%emt 0:09:21]} dxc5 {[%emt 0:00:30]} 21. Bxe6 {[%emt 0:00:30]} fxe6 {[%emt 0:00:30]} 22. Qg4 {[%emt 0:00:00]} Qb6 {[%emt 0:04:30]} 23. b4 {[%emt 0:01:36]} Bd4 {[%emt 0:00:30]} 24. bxc5 {[%emt 0:00:43]} Bxc5 {[%emt 0:00:30]} 25. Rxc5 {[%emt 0:00:55]} Rxc5 {[%emt 0:00:00]} 26. Bxc5 {[%emt 0:01:20]} Qxc5 {[%emt 0:00:00]} 27. Qxe6+ {[%emt 0:00:00]} Kg7 {[%emt 0:01:30]} 28. Qd7 {[%emt 0:01:05]} b5 {[%emt 0:00:30]} 29. Kh1 {[%emt 0:00:00]} Rxf2 {[%emt 0:03:30]} 30. Rxf2 {[%emt 0:00:37]} Qxf2 {[%emt 0:00:30]} 31. Qxe7+ {[%emt 0:00:30]} Kh6 {[%emt 0:00:00]} 32. e5 {[%emt 0:00:00]} Qf1+ {[%emt 0:00:00]} 1/2-1/2

[Event "TUR-chT Superleague 2018"]
[Site "Ankara"]
[Date "2018.07.27"]
[Round "3"]
[White "Tukhaev, Adam"]
[Black "Mchedlishvili, Mikheil"]
[Result "0-1"]
[ECO "B13"]
[WhiteElo "2542"]
[BlackElo "2608"]
[Annotator "ChessBase"]
[PlyCount "88"]
[EventDate "2018.07.25"]
[EventType "team-tourn"]
[EventCountry "TUR"]
[SourceTitle "playchess.com"]
[Source "ChessBase"]
[SourceQuality "1"]
[TimeControl "40/5400+30:1800+30"]

1. e4 c6 2. d4 d5 3. exd5 cxd5 4. Bd3 Nf6 5. c3 Bg4 6. Qb3 Qc7 7. h3 Bh5 8. g4 Bg6 9. Bxg6 hxg6 10. g5 Nfd7 11. Qxd5 e5 12. Ne2 Nc6 13. Be3 Nb6 14. Qe4 O-O-O 15. Nd2 f5 16. gxf6 gxf6 17. Qxg6 exd4 18. cxd4 Nd5 19. Rc1 Kb8 20. Qg3 Bd6 21. Qf3 Qf7 22. Ne4 Bc7 23. a3 Rhe8 24. N4c3 Nxe3 25. fxe3 Qb3 26. Kf2 f5 27. Rhd1 Rd7 28. Rd2 Ne5 29. Qh5 Red8 30. Nf4 Nc4 31. Re2 Nxe3 32. Ng2 Nc4 33. Qf3 Rxd4 34. Kg1 Qb6 35. Qf2 Qd6 36. Ne1 Rg8+ 37. Kh1 Rf4 {[%emt 1:22:00]} 38. Nf3 {[%emt 1:18:00]} Qh6 {[%emt 0:00:30]} 39. Rg1 {[%emt 0:00:30]} Qxh3+ {[%emt 0:00:30]} 40. Nh2 {[%emt 0:00:30]} Rh8 {[%emt 0:30:30]} 41. Qe1 {[%emt 0:30:30]} Qxh2+ {[%emt 0:00:30]} 42. Rxh2 {[%emt 0:00:30]} Rxh2+ {[%emt 0:00:30]} 43. Kxh2 {[%emt 0:00:30]} Rf2+ {[%emt 0:00:30]} 44. Kh3 {[%emt 0:00:30]} Rh2# {[%emt 0:00:30]} 0-1